[Event "Titled Tuesday Blitz June 27 Late 2023"]
[White "Durarbayli, Vasif"]
[Black "Troff, Kayden"]
[WhiteFideId "13402935"]
[BlackFideId "2047896"]
[WhiteElo "2914"]
[BlackElo "2737"]
[Result "1-0"]
[Round "8"]
[TimeControl "180+2"]
[Date "2023.06.27"]
[WhiteClock "0:00:12"]
[BlackClock "0:00:01"]
[Board "18"]

1. e4 {[%clk 0:03:00]}  c5 {[%clk 0:02:58]} 2. Nf3 {[%clk 0:03:00]}  g6 {[%clk 0:02:55]} 3. Bc4 {[%clk 0:02:57]}  Bg7 {[%clk 0:02:52]} 4. O-O {[%clk 0:02:57]}  Nc6 {[%clk 0:02:51]} 5. c3 {[%clk 0:02:57]}  e6 {[%clk 0:02:48]} 6. d4 {[%clk 0:02:55]}  cxd4 {[%clk 0:02:47]} 7. Nxd4 {[%clk 0:02:56]}  Nge7 {[%clk 0:02:36]} 8. Nb5 {[%clk 0:02:49]}  O-O {[%clk 0:02:35]} 9. Nd6 {[%clk 0:02:45]}  a6 {[%clk 0:02:33]} 10. Bf4 {[%clk 0:02:39]}  b5 {[%clk 0:02:31]} 11. Bb3 {[%clk 0:02:37]}  b4 {[%clk 0:02:30]} 12. Qd2 {[%clk 0:02:25]}  a5 {[%clk 0:02:28]} 13. Ba4 {[%clk 0:02:11]}  Ba6 {[%clk 0:02:23]} 14. Rd1 {[%clk 0:02:11]}  Nc8 {[%clk 0:02:10]} 15. a3 {[%clk 0:01:49]}  Nb6 {[%clk 0:02:02]} 16. Bxc6 {[%clk 0:01:41]}  dxc6 {[%clk 0:02:00]} 17. axb4 {[%clk 0:01:41]}  axb4 {[%clk 0:01:59]} 18. cxb4 {[%clk 0:01:27]}  Nc4 {[%clk 0:01:54]} 19. Nxc4 {[%clk 0:01:15]}  Bxc4 {[%clk 0:01:52]} 20. Rxa8 {[%clk 0:01:15]}  Qxa8 {[%clk 0:01:52]} 21. Nc3 {[%clk 0:01:14]}  Bb3 {[%clk 0:01:47]} 22. Rc1 {[%clk 0:01:10]}  Rd8 {[%clk 0:01:47]} 23. Qe3 {[%clk 0:01:00]}  Bd4 {[%clk 0:01:29]} 24. Qg3 {[%clk 0:01:00]}  Qb7 {[%clk 0:00:58]} 25. Bd6 {[%clk 0:00:46]}  Qb6 {[%clk 0:00:42]} 26. e5 {[%clk 0:00:31]}  Bd5 {[%clk 0:00:31]} 27. h4 {[%clk 0:00:31]}  Bxc3 {[%clk 0:00:20]} 28. bxc3 {[%clk 0:00:30]}  h6 {[%clk 0:00:16]} 29. Qf4 {[%clk 0:00:28]}  Qb5 {[%clk 0:00:15]} 30. c4 {[%clk 0:00:23]}  Qa4 {[%clk 0:00:08]} 31. cxd5 {[%clk 0:00:22]}  cxd5 {[%clk 0:00:09]} 32. Qxh6 {[%clk 0:00:22]}  d4 {[%clk 0:00:05]} 33. h5 {[%clk 0:00:20]}  Qa3 {[%clk 0:00:02]} 34. hxg6 {[%clk 0:00:19]}  fxg6 {[%clk 0:00:03]} 35. Qxg6+ {[%clk 0:00:20]}  Kh8 {[%clk 0:00:03]} 36. Qh6+ {[%clk 0:00:20]}  Kg8 {[%clk 0:00:03]} 37. Qxe6+ {[%clk 0:00:20]}  Kh7 {[%clk 0:00:03]} 38. Qf7+ {[%clk 0:00:20]}  Kh6 {[%clk 0:00:03]} 39. Qf6+ {[%clk 0:00:21]}  Kh5 {[%clk 0:00:04]} 40. Qf5+ {[%clk 0:00:17]}  Kh6 {[%clk 0:00:04]} 41. Qf4+ {[%clk 0:00:17]}  Kg6 {[%clk 0:00:04]} 42. Qg4+ {[%clk 0:00:17]}  Kh6 {[%clk 0:00:04]} 43. Qh4+ {[%clk 0:00:17]}  Kg6 {[%clk 0:00:05]} 44. Qf6+ {[%clk 0:00:17]}  Kh5 {[%clk 0:00:04]} 45. Rd1 {[%clk 0:00:15]}  Qb3 {[%clk 0:00:04]} 46. Qf5+ {[%clk 0:00:11]}  Kh6 {[%clk 0:00:04]} 47. Rd3 {[%clk 0:00:11]}  Qb1+ {[%clk 0:00:04]} 48. Kh2 {[%clk 0:00:11]}  Qc1 {[%clk 0:00:03]} 49. Rh3+ {[%clk 0:00:11]}  Kg7 {[%clk 0:00:01]} 50. Rh7+ {[%clk 0:00:12]} 1-0


[Site "https://www.chess.com"]

[Event "Titled Tuesday Blitz June 27 Late 2023"]
[White "Korchmar, Vasiliy"]
[Black "Ibarra Jerez, Jose Carlos"]
[WhiteFideId "24131750"]
[BlackFideId "2226332"]
[WhiteElo "2699"]
[BlackElo "2885"]
[Result "1-0"]
[Round "8"]
[TimeControl "180+2"]
[Date "2023.06.27"]
[WhiteClock "0:00:05"]
[BlackClock "0:00:00"]
[Board "21"]

1. e4 {[%clk 0:03:00]}  e6 {[%clk 0:02:58]} 2. d4 {[%clk 0:03:00]}  d5 {[%clk 0:02:59]} 3. e5 {[%clk 0:03:01]}  c5 {[%clk 0:02:59]} 4. c3 {[%clk 0:03:02]}  Qb6 {[%clk 0:03:00]} 5. Nf3 {[%clk 0:03:02]}  Nc6 {[%clk 0:03:00]} 6. Be2 {[%clk 0:03:01]}  cxd4 {[%clk 0:02:58]} 7. cxd4 {[%clk 0:03:01]}  Nh6 {[%clk 0:02:58]} 8. Bxh6 {[%clk 0:03:01]}  Qxb2 {[%clk 0:02:58]} 9. Nbd2 {[%clk 0:02:58]}  gxh6 {[%clk 0:02:58]} 10. Rb1 {[%clk 0:02:59]}  Qa3 {[%clk 0:02:48]} 11. O-O {[%clk 0:02:59]}  Bg7 {[%clk 0:02:48]} 12. Re1 {[%clk 0:02:54]}  O-O {[%clk 0:02:49]} 13. Nf1 {[%clk 0:02:55]}  f6 {[%clk 0:02:47]} 14. exf6 {[%clk 0:02:35]}  Rxf6 {[%clk 0:02:46]} 15. Ng3 {[%clk 0:02:36]}  Rf7 {[%clk 0:02:34]} 16. Nh5 {[%clk 0:02:33]}  Bf8 {[%clk 0:02:31]} 17. Rb3 {[%clk 0:02:26]}  Qd6 {[%clk 0:02:30]} 18. Bb5 {[%clk 0:02:25]}  Rf5 {[%clk 0:02:24]} 19. Bxc6 {[%clk 0:02:14]}  bxc6 {[%clk 0:02:19]} 20. Ne5 {[%clk 0:02:12]}  Qe7 {[%clk 0:02:00]} 21. Rg3+ {[%clk 0:01:35]}  Kh8 {[%clk 0:01:38]} 22. f4 {[%clk 0:00:49]}  Qh4 {[%clk 0:01:06]} 23. Rh3 {[%clk 0:00:48]}  Qe7 {[%clk 0:01:03]} 24. Rg3 {[%clk 0:00:48]}  Qh4 {[%clk 0:00:59]} 25. Rh3 {[%clk 0:00:48]}  Qe7 {[%clk 0:00:39]} 26. Qg4 {[%clk 0:00:48]}  Qb4 {[%clk 0:00:28]} 27. Rd1 {[%clk 0:00:41]}  Qe7 {[%clk 0:00:06]} 28. Rg3 {[%clk 0:00:42]}  Bg7 {[%clk 0:00:07]} 29. Nxg7 {[%clk 0:00:38]}  Rf8 {[%clk 0:00:04]} 30. Nh5 {[%clk 0:00:17]}  Ba6 {[%clk 0:00:05]} 31. Ng6+ {[%clk 0:00:15]}  hxg6 {[%clk 0:00:04]} 32. Qxg6 {[%clk 0:00:16]}  Qh7 {[%clk 0:00:05]} 33. Qxe6 {[%clk 0:00:17]}  Rae8 {[%clk 0:00:04]} 34. Qxc6 {[%clk 0:00:16]}  Be2 {[%clk 0:00:03]} 35. Nf6 {[%clk 0:00:11]}  Qf5 {[%clk 0:00:02]} 36. Nxe8 {[%clk 0:00:10]}  Qxf4 {[%clk 0:00:03]} 37. Qc1 {[%clk 0:00:05]}  Qf2+ {[%clk 0:00:02]} 38. Kh1 {[%clk 0:00:06]}  Rf6 {[%clk 0:00:01]} 39. Nxf6 {[%clk 0:00:05]}  Qxf6 {[%clk 0:00:01]} 40. Re1 {[%clk 0:00:05]}  Bd3 {[%clk 0:00:01]} 41. Qe3 {[%clk 0:00:05]}  Be4 {[%clk 0:00:02]} 42. h3 {[%clk 0:00:04]}  Qe6 {[%clk 0:00:02]} 43. Kh2 {[%clk 0:00:04]}  Kh7 {[%clk 0:00:03]} 44. Re2 {[%clk 0:00:05]}  a5 {[%clk 0:00:03]} 45. Rf2 {[%clk 0:00:05]}  Qd6 {[%clk 0:00:00]} 46. Qf4 {[%clk 0:00:05]} 1-0


[Site "https://www.chess.com"]

[Event "Titled Tuesday Blitz June 27 Late 2023"]
[White "Hansen, Eric"]
[Black "Gokerkan, Cem Kaan"]
[WhiteFideId "2606771"]
[BlackFideId "6336760"]
[WhiteElo "2880"]
[BlackElo "2707"]
[Result "0-1"]
[Round "8"]
[TimeControl "180+2"]
[Date "2023.06.27"]
[WhiteClock "0:00:00"]
[BlackClock "0:00:03"]
[Board "22"]

1. d4 {[%clk 0:03:00]}  Nf6 {[%clk 0:02:59]} 2. c4 {[%clk 0:03:00]}  g6 {[%clk 0:02:59]} 3. Nc3 {[%clk 0:03:01]}  Bg7 {[%clk 0:02:57]} 4. Bg5 {[%clk 0:03:00]}  O-O {[%clk 0:02:55]} 5. e3 {[%clk 0:03:00]}  c5 {[%clk 0:02:55]} 6. d5 {[%clk 0:02:59]}  e6 {[%clk 0:02:50]} 7. Nf3 {[%clk 0:02:58]}  exd5 {[%clk 0:02:46]} 8. cxd5 {[%clk 0:02:58]}  d6 {[%clk 0:02:45]} 9. h3 {[%clk 0:02:58]}  Re8 {[%clk 0:02:44]} 10. Bb5 {[%clk 0:02:57]}  Nbd7 {[%clk 0:02:41]} 11. a4 {[%clk 0:02:55]}  a6 {[%clk 0:02:38]} 12. Be2 {[%clk 0:02:55]}  Ne5 {[%clk 0:02:32]} 13. Nd2 {[%clk 0:02:53]}  h6 {[%clk 0:02:27]} 14. Bh4 {[%clk 0:02:51]}  Qb6 {[%clk 0:02:12]} 15. Qc2 {[%clk 0:02:50]}  Bf5 {[%clk 0:01:30]} 16. e4 {[%clk 0:02:49]}  g5 {[%clk 0:01:30]} 17. Bg3 {[%clk 0:02:48]}  Bg6 {[%clk 0:01:26]} 18. Bxe5 {[%clk 0:02:39]}  dxe5 {[%clk 0:01:09]} 19. Nc4 {[%clk 0:02:36]}  Qd8 {[%clk 0:01:07]} 20. Rd1 {[%clk 0:02:25]}  b5 {[%clk 0:01:07]} 21. axb5 {[%clk 0:02:17]}  axb5 {[%clk 0:01:08]} 22. Nd2 {[%clk 0:02:14]}  b4 {[%clk 0:01:06]} 23. Na4 {[%clk 0:02:14]}  b3 {[%clk 0:00:25]} 24. Qc4 {[%clk 0:02:07]}  Qa5 {[%clk 0:00:16]} 25. Nc3 {[%clk 0:02:07]}  Qb4 {[%clk 0:00:15]} 26. O-O {[%clk 0:02:04]}  h5 {[%clk 0:00:12]} 27. Rfe1 {[%clk 0:01:54]}  g4 {[%clk 0:00:12]} 28. hxg4 {[%clk 0:01:46]}  hxg4 {[%clk 0:00:13]} 29. Bf1 {[%clk 0:01:46]}  Bh6 {[%clk 0:00:10]} 30. Nxb3 {[%clk 0:01:38]}  Reb8 {[%clk 0:00:08]} 31. Nxc5 {[%clk 0:01:34]}  g3 {[%clk 0:00:08]} 32. Qxb4 {[%clk 0:01:22]}  gxf2+ {[%clk 0:00:09]} 33. Kxf2 {[%clk 0:01:22]}  Rxb4 {[%clk 0:00:09]} 34. Nd3 {[%clk 0:01:22]}  Nxe4+ {[%clk 0:00:08]} 35. Nxe4 {[%clk 0:01:22]}  Rxe4 {[%clk 0:00:09]} 36. Nxe5 {[%clk 0:01:21]}  Rf4+ {[%clk 0:00:05]} 37. Kg3 {[%clk 0:01:17]}  Bh5 {[%clk 0:00:04]} 38. Be2 {[%clk 0:01:09]}  Bxe2 {[%clk 0:00:03]} 39. Rxe2 {[%clk 0:01:09]}  Rb8 {[%clk 0:00:03]} 40. Rd3 {[%clk 0:01:07]}  Rf5 {[%clk 0:00:02]} 41. d6 {[%clk 0:01:04]}  Bf4+ {[%clk 0:00:01]} 42. Kg4 {[%clk 0:00:50]}  Rxe5 {[%clk 0:00:02]} 43. Rc2 {[%clk 0:00:36]}  Bg5 {[%clk 0:00:02]} 44. d7 {[%clk 0:00:36]}  Rd8 {[%clk 0:00:02]} 45. Rc8 {[%clk 0:00:35]}  Kg7 {[%clk 0:00:03]} 46. b4 {[%clk 0:00:29]}  Be7 {[%clk 0:00:02]} 47. Rd4 {[%clk 0:00:28]}  Rb5 {[%clk 0:00:01]} 48. Kf4 {[%clk 0:00:18]}  Rb7 {[%clk 0:00:02]} 49. Rxd8 {[%clk 0:00:18]}  Bxd8 {[%clk 0:00:03]} 50. Kf5 {[%clk 0:00:04]}  Rb5+ {[%clk 0:00:02]} 51. Ke4 {[%clk 0:00:03]}  Kf6 {[%clk 0:00:03]} 52. Kd3 {[%clk 0:00:03]}  Ke6 {[%clk 0:00:03]} 53. Kc4 {[%clk 0:00:03]}  Rb7 {[%clk 0:00:03]} 54. g4 {[%clk 0:00:04]}  Rc7+ {[%clk 0:00:02]} 55. Kb5 {[%clk 0:00:03]}  Rxd7 {[%clk 0:00:03]} 56. Re4+ {[%clk 0:00:02]}  Kf6 {[%clk 0:00:04]} 57. Kc6 {[%clk 0:00:02]}  Rd1 {[%clk 0:00:03]} 58. b5 {[%clk 0:00:02]}  Rc1+ {[%clk 0:00:02]} 59. Kd7 {[%clk 0:00:03]}  Bb6 {[%clk 0:00:02]} 60. Rf4+ {[%clk 0:00:02]}  Kg6 {[%clk 0:00:02]} 61. Re4 {[%clk 0:00:01]}  Bg1 {[%clk 0:00:02]} 62. Kd6 {[%clk 0:00:01]}  Rb1 {[%clk 0:00:03]} 63. Kc6 {[%clk 0:00:01]}  f6 {[%clk 0:00:03]} 64. Rc4 {[%clk 0:00:01]}  Be3 {[%clk 0:00:03]} 65. Re4 {[%clk 0:00:02]}  Bf2 {[%clk 0:00:02]} 66. Rc4 {[%clk 0:00:02]}  Bg1 {[%clk 0:00:03]} 67. Re4 {[%clk 0:00:02]}  Kg5 {[%clk 0:00:03]} 68. Rc4 {[%clk 0:00:02]}  Be3 {[%clk 0:00:04]} 69. Re4 {[%clk 0:00:03]}  Bf4 {[%clk 0:00:04]} 70. b6 {[%clk 0:00:03]}  Kxg4 {[%clk 0:00:04]} 71. b7 {[%clk 0:00:03]}  f5 {[%clk 0:00:03]} 72. Re8 {[%clk 0:00:03]}  Kf3 {[%clk 0:00:02]} 73. Rf8 {[%clk 0:00:03]}  Ke4 {[%clk 0:00:03]} 74. Re8+ {[%clk 0:00:04]}  Be5 {[%clk 0:00:03]} 75. Rg8 {[%clk 0:00:00]}  f4 {[%clk 0:00:03]} 0-1


[Site "https://www.chess.com"]

[Event "Titled Tuesday Blitz June 27 Late 2023"]
[White "Aldokhin, Ivan"]
[Black "Krzyzanowski, Marcin"]
[WhiteFideId "24115720"]
[BlackFideId "1132199"]
[WhiteElo "2630"]
[BlackElo "2842"]
[Result "0-1"]
[Round "8"]
[TimeControl "180+2"]
[Date "2023.06.27"]
[WhiteClock "0:00:00"]
[BlackClock "0:00:23"]
[Board "26"]

1. e4 {[%clk 0:02:59]}  c5 {[%clk 0:02:59]} 2. Nf3 {[%clk 0:02:59]}  Nc6 {[%clk 0:02:59]} 3. d4 {[%clk 0:03:00]}  cxd4 {[%clk 0:02:59]} 4. Nxd4 {[%clk 0:03:01]}  e5 {[%clk 0:03:00]} 5. Nb5 {[%clk 0:03:01]}  d6 {[%clk 0:02:59]} 6. N1c3 {[%clk 0:03:01]}  a6 {[%clk 0:02:58]} 7. Na3 {[%clk 0:03:01]}  Be6 {[%clk 0:02:55]} 8. g3 {[%clk 0:02:57]}  Nf6 {[%clk 0:02:47]} 9. Bg2 {[%clk 0:02:57]}  Be7 {[%clk 0:02:45]} 10. O-O {[%clk 0:02:53]}  Rc8 {[%clk 0:02:43]} 11. Nd5 {[%clk 0:02:52]}  Bxd5 {[%clk 0:02:33]} 12. exd5 {[%clk 0:02:52]}  Nb8 {[%clk 0:02:34]} 13. c4 {[%clk 0:02:46]}  O-O {[%clk 0:02:33]} 14. Be3 {[%clk 0:02:31]}  Nbd7 {[%clk 0:02:29]} 15. b4 {[%clk 0:02:30]}  a5 {[%clk 0:02:22]} 16. Qb3 {[%clk 0:02:23]}  axb4 {[%clk 0:02:15]} 17. Qxb4 {[%clk 0:02:23]}  Ng4 {[%clk 0:02:05]} 18. Bd2 {[%clk 0:02:08]}  Nc5 {[%clk 0:02:05]} 19. Bh3 {[%clk 0:01:49]}  f5 {[%clk 0:01:50]} 20. f3 {[%clk 0:01:34]}  Nh6 {[%clk 0:01:36]} 21. Be3 {[%clk 0:01:12]}  Bg5 {[%clk 0:01:14]} 22. Bxc5 {[%clk 0:00:36]}  Rxc5 {[%clk 0:01:14]} 23. Qxb7 {[%clk 0:00:36]}  Qa5 {[%clk 0:01:12]} 24. Qb3 {[%clk 0:00:34]}  Rfc8 {[%clk 0:00:40]} 25. Nb5 {[%clk 0:00:33]}  Rxc4 {[%clk 0:00:38]} 26. Kh1 {[%clk 0:00:24]}  Rb4 {[%clk 0:00:36]} 27. Nxd6 {[%clk 0:00:22]}  Rxb3 {[%clk 0:00:31]} 28. axb3 {[%clk 0:00:21]}  Qd8 {[%clk 0:00:31]} 29. Nxc8 {[%clk 0:00:19]}  Qxc8 {[%clk 0:00:32]} 30. f4 {[%clk 0:00:12]}  exf4 {[%clk 0:00:32]} 31. gxf4 {[%clk 0:00:12]}  Be7 {[%clk 0:00:29]} 32. Rfc1 {[%clk 0:00:09]}  Qd7 {[%clk 0:00:26]} 33. Ra8+ {[%clk 0:00:07]}  Kf7 {[%clk 0:00:27]} 34. Bg2 {[%clk 0:00:07]}  Ng4 {[%clk 0:00:27]} 35. Rac8 {[%clk 0:00:04]}  Qb5 {[%clk 0:00:24]} 36. R8c7 {[%clk 0:00:03]}  Qb6 {[%clk 0:00:22]} 37. R1c6 {[%clk 0:00:03]}  Nf2+ {[%clk 0:00:22]} 38. Kg1 {[%clk 0:00:00]}  Nh3+ {[%clk 0:00:23]} 0-1


[Site "https://www.chess.com"]

[Event "Titled Tuesday Blitz June 27 Late 2023"]
[White "Vdovin, Vadim"]
[Black "Harshavardhan G B"]
[WhiteFideId "24107158"]
[BlackFideId "25059009"]
[WhiteElo "2616"]
[BlackElo "2815"]
[Result "0-1"]
[Round "8"]
[TimeControl "180+2"]
[Date "2023.06.27"]
[WhiteClock "0:00:00"]
[BlackClock "0:01:26"]
[Board "27"]

1. e4 {[%clk 0:02:57]}  e5 {[%clk 0:02:58]} 2. Nf3 {[%clk 0:02:56]}  Nc6 {[%clk 0:02:59]} 3. Bb5 {[%clk 0:02:57]}  a6 {[%clk 0:02:59]} 4. Ba4 {[%clk 0:02:57]}  d6 {[%clk 0:03:00]} 5. O-O {[%clk 0:02:57]}  Bg4 {[%clk 0:03:00]} 6. h3 {[%clk 0:02:56]}  h5 {[%clk 0:03:00]} 7. d4 {[%clk 0:02:56]}  b5 {[%clk 0:02:57]} 8. Bb3 {[%clk 0:02:56]}  Nxd4 {[%clk 0:02:58]} 9. hxg4 {[%clk 0:02:52]}  Nxb3 {[%clk 0:02:58]} 10. axb3 {[%clk 0:02:34]}  hxg4 {[%clk 0:02:57]} 11. Ng5 {[%clk 0:02:33]}  Qd7 {[%clk 0:02:57]} 12. Nc3 {[%clk 0:02:15]}  c6 {[%clk 0:02:56]} 13. Be3 {[%clk 0:02:01]}  f6 {[%clk 0:02:54]} 14. f4 {[%clk 0:01:17]}  exf4 {[%clk 0:02:51]} 15. Rxf4 {[%clk 0:01:10]}  Nh6 {[%clk 0:02:49]} 16. Nxb5 {[%clk 0:00:47]}  fxg5 {[%clk 0:02:34]} 17. Rxf8+ {[%clk 0:00:46]}  Kxf8 {[%clk 0:02:31]} 18. Nxd6 {[%clk 0:00:46]}  Kg8 {[%clk 0:02:23]} 19. Qd4 {[%clk 0:00:22]}  Nf7 {[%clk 0:02:17]} 20. e5 {[%clk 0:00:21]}  Qe6 {[%clk 0:02:02]} 21. Rf1 {[%clk 0:00:16]}  Nxe5 {[%clk 0:01:58]} 22. Bxg5 {[%clk 0:00:10]}  g3 {[%clk 0:01:50]} 23. Nf5 {[%clk 0:00:07]}  Rh5 {[%clk 0:01:33]} 24. Ne7+ {[%clk 0:00:07]}  Kh8 {[%clk 0:01:33]} 25. Qe4 {[%clk 0:00:01]}  Rxg5 {[%clk 0:01:25]} 26. Qh4+ {[%clk 0:00:01]}  Qh6 {[%clk 0:01:26]} 27. Qxh6+ {[%clk 0:00:00]}  gxh6 {[%clk 0:01:26]} 0-1


[Site "https://www.chess.com"]

[Event "Titled Tuesday Blitz June 27 Late 2023"]
[White "Ohanyan, Emin"]
[Black "Sukandar, Irine Kharisma"]
[WhiteFideId "13312022"]
[BlackFideId "7101937"]
[WhiteElo "2795"]
[BlackElo "2478"]
[Result "1-0"]
[Round "8"]
[TimeControl "180+2"]
[Date "2023.06.27"]
[WhiteClock "0:00:10"]
[BlackClock "0:00:57"]
[Board "31"]

1. d4 {[%clk 0:03:00]}  Nf6 {[%clk 0:02:58]} 2. c4 {[%clk 0:02:58]}  c5 {[%clk 0:02:57]} 3. d5 {[%clk 0:02:58]}  b5 {[%clk 0:02:58]} 4. cxb5 {[%clk 0:02:59]}  a6 {[%clk 0:02:58]} 5. e3 {[%clk 0:03:00]}  g6 {[%clk 0:02:55]} 6. Nc3 {[%clk 0:02:59]}  Bg7 {[%clk 0:02:55]} 7. Nf3 {[%clk 0:02:52]}  O-O {[%clk 0:02:55]} 8. a4 {[%clk 0:02:50]}  axb5 {[%clk 0:02:53]} 9. Bxb5 {[%clk 0:02:51]}  d6 {[%clk 0:02:52]} 10. O-O {[%clk 0:02:50]}  Ba6 {[%clk 0:02:51]} 11. Bd2 {[%clk 0:02:35]}  Bxb5 {[%clk 0:02:37]} 12. axb5 {[%clk 0:02:36]}  Nbd7 {[%clk 0:02:37]} 13. e4 {[%clk 0:02:28]}  Nb6 {[%clk 0:02:36]} 14. Qb3 {[%clk 0:02:16]}  Qc7 {[%clk 0:02:23]} 15. Ra6 {[%clk 0:02:13]}  Nfd7 {[%clk 0:02:09]} 16. Rfa1 {[%clk 0:02:08]}  f5 {[%clk 0:02:08]} 17. Ng5 {[%clk 0:02:03]}  c4 {[%clk 0:01:54]} 18. Qc2 {[%clk 0:01:06]}  Nc5 {[%clk 0:01:50]} 19. Rxa8 {[%clk 0:01:06]}  Nxa8 {[%clk 0:01:49]} 20. Be3 {[%clk 0:00:57]}  h6 {[%clk 0:01:39]} 21. Ne6 {[%clk 0:00:29]}  Nxe6 {[%clk 0:01:38]} 22. dxe6 {[%clk 0:00:30]}  Bxc3 {[%clk 0:01:28]} 23. Qxc3 {[%clk 0:00:29]}  f4 {[%clk 0:01:26]} 24. Bd4 {[%clk 0:00:27]}  Qb7 {[%clk 0:01:16]} 25. Bh8 {[%clk 0:00:14]}  Rf6 {[%clk 0:01:04]} 26. Bxf6 {[%clk 0:00:14]}  exf6 {[%clk 0:01:05]} 27. Qxf6 {[%clk 0:00:15]}  Qxe4 {[%clk 0:00:59]} 28. Qf7+ {[%clk 0:00:10]}  Kh8 {[%clk 0:00:59]} 29. Qf8+ {[%clk 0:00:10]}  Kh7 {[%clk 0:00:57]} 30. Ra7+ {[%clk 0:00:10]} 1-0


[Site "https://www.chess.com"]

[Event "Titled Tuesday Blitz June 27 Late 2023"]
[White "Andreikin, Dmitry"]
[Black "Vaibhav Jayant Raut"]
[WhiteFideId "4158814"]
[BlackFideId "5089034"]
[WhiteElo "3005"]
[BlackElo "2632"]
[Result "1-0"]
[Round "8"]
[TimeControl "180+2"]
[Date "2023.06.27"]
[WhiteClock "0:02:24"]
[BlackClock "0:01:55"]
[Board "32"]

1. e4 {[%clk 0:03:00]}  c5 {[%clk 0:02:58]} 2. Nf3 {[%clk 0:02:59]}  e6 {[%clk 0:02:56]} 3. d4 {[%clk 0:02:59]}  cxd4 {[%clk 0:02:57]} 4. Nxd4 {[%clk 0:03:00]}  a6 {[%clk 0:02:57]} 5. Bd3 {[%clk 0:02:58]}  Ne7 {[%clk 0:02:57]} 6. O-O {[%clk 0:02:56]}  Nbc6 {[%clk 0:02:57]} 7. Nxc6 {[%clk 0:02:56]}  Nxc6 {[%clk 0:02:54]} 8. Qg4 {[%clk 0:02:56]}  Ne5 {[%clk 0:02:38]} 9. Qg3 {[%clk 0:02:56]}  Nxd3 {[%clk 0:02:38]} 10. cxd3 {[%clk 0:02:57]}  b5 {[%clk 0:02:35]} 11. Bf4 {[%clk 0:02:54]}  Bb7 {[%clk 0:02:33]} 12. a4 {[%clk 0:02:50]}  h6 {[%clk 0:02:22]} 13. axb5 {[%clk 0:02:49]}  axb5 {[%clk 0:02:23]} 14. Nc3 {[%clk 0:02:49]}  Rxa1 {[%clk 0:02:20]} 15. Rxa1 {[%clk 0:02:49]}  Qb6 {[%clk 0:02:21]} 16. Be5 {[%clk 0:02:29]}  Bc5 {[%clk 0:02:06]} 17. Bxg7 {[%clk 0:02:25]}  Rg8 {[%clk 0:02:05]} 18. Qb8+ {[%clk 0:02:25]}  Qd8 {[%clk 0:01:59]} 19. Qxb7 {[%clk 0:02:25]}  Rxg7 {[%clk 0:01:55]} 20. Ra8 {[%clk 0:02:24]} 1-0


[Site "https://www.chess.com"]

[Event "Titled Tuesday Blitz June 27 Late 2023"]
[White "Nefedov, Sergey"]
[Black "He, Anthony"]
[WhiteFideId "24113417"]
[BlackFideId "2088215"]
[WhiteElo "2592"]
[BlackElo "2978"]
[Result "0-1"]
[Round "8"]
[TimeControl "180+2"]
[Date "2023.06.27"]
[WhiteClock "0:00:00"]
[BlackClock "0:00:10"]
[Board "33"]

1. d4 {[%clk 0:03:00]}  Nf6 {[%clk 0:02:59]} 2. Nf3 {[%clk 0:02:59]}  g6 {[%clk 0:03:00]} 3. c4 {[%clk 0:02:57]}  Bg7 {[%clk 0:03:00]} 4. Nc3 {[%clk 0:02:57]}  d5 {[%clk 0:03:00]} 5. e3 {[%clk 0:02:56]}  O-O {[%clk 0:03:00]} 6. Qb3 {[%clk 0:02:56]}  c6 {[%clk 0:02:54]} 7. Bd2 {[%clk 0:02:56]}  dxc4 {[%clk 0:02:53]} 8. Bxc4 {[%clk 0:02:55]}  b5 {[%clk 0:02:54]} 9. Be2 {[%clk 0:02:52]}  a6 {[%clk 0:02:53]} 10. O-O {[%clk 0:02:51]}  Be6 {[%clk 0:02:53]} 11. Qc2 {[%clk 0:02:51]}  Nbd7 {[%clk 0:02:54]} 12. e4 {[%clk 0:02:50]}  Bg4 {[%clk 0:02:42]} 13. Rad1 {[%clk 0:02:23]}  Bxf3 {[%clk 0:02:37]} 14. Bxf3 {[%clk 0:02:22]}  e5 {[%clk 0:02:38]} 15. Be3 {[%clk 0:02:04]}  exd4 {[%clk 0:02:36]} 16. Bxd4 {[%clk 0:02:04]}  Qe7 {[%clk 0:02:37]} 17. Rfe1 {[%clk 0:02:03]}  Ne5 {[%clk 0:02:33]} 18. Be2 {[%clk 0:01:55]}  Rad8 {[%clk 0:02:29]} 19. f3 {[%clk 0:01:50]}  Rxd4 {[%clk 0:01:55]} 20. Rxd4 {[%clk 0:01:49]}  Qc5 {[%clk 0:01:56]} 21. Rd1 {[%clk 0:01:50]}  b4 {[%clk 0:01:55]} 22. Kh1 {[%clk 0:01:41]}  bxc3 {[%clk 0:01:54]} 23. Qxc3 {[%clk 0:01:35]}  Qe7 {[%clk 0:01:53]} 24. Bxa6 {[%clk 0:01:34]}  Nh5 {[%clk 0:01:52]} 25. Qc1 {[%clk 0:01:20]}  Qh4 {[%clk 0:01:50]} 26. Kg1 {[%clk 0:01:11]}  Nf4 {[%clk 0:01:38]} 27. R4d2 {[%clk 0:01:05]}  Bh6 {[%clk 0:01:36]} 28. Qc3 {[%clk 0:01:01]}  Re8 {[%clk 0:01:32]} 29. Bf1 {[%clk 0:00:56]}  Qf6 {[%clk 0:01:25]} 30. a4 {[%clk 0:00:51]}  Bf8 {[%clk 0:01:21]} 31. a5 {[%clk 0:00:50]}  c5 {[%clk 0:01:07]} 32. Kh1 {[%clk 0:00:49]}  h5 {[%clk 0:00:59]} 33. a6 {[%clk 0:00:48]}  h4 {[%clk 0:00:55]} 34. a7 {[%clk 0:00:43]}  Ra8 {[%clk 0:00:55]} 35. Ra1 {[%clk 0:00:42]}  Ne6 {[%clk 0:00:50]} 36. Rd5 {[%clk 0:00:39]}  Bg7 {[%clk 0:00:48]} 37. Bb5 {[%clk 0:00:31]}  h3 {[%clk 0:00:42]} 38. Rxe5 {[%clk 0:00:25]}  hxg2+ {[%clk 0:00:42]} 39. Kxg2 {[%clk 0:00:25]}  Qf4 {[%clk 0:00:34]} 40. Qc1 {[%clk 0:00:08]}  Bxe5 {[%clk 0:00:11]} 41. Qxf4 {[%clk 0:00:06]}  Nxf4+ {[%clk 0:00:12]} 42. Kf1 {[%clk 0:00:05]}  Bxb2 {[%clk 0:00:12]} 43. Ra2 {[%clk 0:00:05]}  c4 {[%clk 0:00:07]} 44. Bc6 {[%clk 0:00:03]}  Rxa7 {[%clk 0:00:07]} 45. Rxa7 {[%clk 0:00:03]}  c3 {[%clk 0:00:08]} 46. Ba4 {[%clk 0:00:04]}  Nd3 {[%clk 0:00:09]} 47. Ke2 {[%clk 0:00:03]}  Nf4+ {[%clk 0:00:09]} 48. Kf1 {[%clk 0:00:03]}  Ne6 {[%clk 0:00:07]} 49. Ke2 {[%clk 0:00:02]}  Kg7 {[%clk 0:00:08]} 50. Kd3 {[%clk 0:00:02]}  Kf6 {[%clk 0:00:08]} 51. Bc2 {[%clk 0:00:02]}  Ng5 {[%clk 0:00:08]} 52. Ke3 {[%clk 0:00:02]}  Ne6 {[%clk 0:00:09]} 53. f4 {[%clk 0:00:03]}  Bc1+ {[%clk 0:00:09]} 54. Kf3 {[%clk 0:00:02]}  Nd4+ {[%clk 0:00:09]} 55. Kg4 {[%clk 0:00:02]}  Nxc2 {[%clk 0:00:10]} 56. e5+ {[%clk 0:00:02]}  Ke6 {[%clk 0:00:09]} 57. Rc7 {[%clk 0:00:02]}  Bd2 {[%clk 0:00:09]} 58. Rc6+ {[%clk 0:00:02]}  Kd5 {[%clk 0:00:10]} 59. Rc7 {[%clk 0:00:02]}  Ne3+ {[%clk 0:00:10]} 60. Kf3 {[%clk 0:00:00]}  c2 {[%clk 0:00:10]} 0-1


[Site "https://www.chess.com"]